bitfinex/quotes_ETHUSD_20250511
["timestamp","ask_amount","ask_price","bid_price","bid_amount"]
[1746958194160,9.28376765,2515.4,2515.0,2.613]
[1746958194623,0.31296886,2515.3,2515.0,2.613]
[1746958200869,0.31296886,2515.3,2515.1,0.3538]
[1746958203767,0.31296886,2515.3,2515.1,0.39355634]
[1746958203969,0.31296886,2515.3,2515.1,8.51772785]
[1746958204156,0.31296886,2515.3,2515.2,0.3538]
[1746958205369,0.31296886,2515.3,2515.2,0.47797151]
[1746958205553,3.97480738,2515.9,2515.2,0.47797151]
[1746958205874,0.22285725,2515.8,2515.2,0.47797151]
[1746958206040,0.53525624,2515.8,2515.2,0.47797151]
[1746958206570,0.53525624,2515.8,2515.3,0.12417151]
[1746958206940,0.22285725,2515.7,2515.3,0.12417151]
[1746958207472,0.31250259,2515.6,2515.3,0.12417151]
[1746958208685,4.75028908,2515.9,2515.3,0.12417151]
[1746958208882,0.31250259,2515.5,2515.3,0.12417151]
[1746958209057,0.7755,2515.9,2515.4,2.613]
[1746958209259,9.28376765,2516.0,2515.4,2.613]
[1746958210089,0.22288637,2515.9,2515.4,2.613]
[1746958210442,0.22288637,2515.9,2515.4,2.65275316]
[1746958210749,0.22288637,2515.9,2515.4,2.73717151]
[1746958211084,9.28376765,2516.0,2515.4,2.73717151]
[1746958211085,0.22288637,2515.8,2515.4,2.73717151]
[1746958211883,9.28376765,2516.0,2515.4,2.73717151]
[1746958212056,1.40336764,2515.9,2515.4,2.73717151]
[1746958212471,1.40336764,2515.9,2515.4,2.613]
[1746958212679,4.7361521,2515.8,2515.4,2.613]
[1746958212885,0.7612,2515.8,2515.4,2.613]
[1746958213083,0.31237309,2515.7,2515.4,2.613]
[1746958213281,0.7612,2515.8,2515.4,2.613]
[1746958213477,0.31237309,2515.6,2515.4,2.613]
[1746958213792,0.61393374,2515.7,2515.4,2.613]
[1746958213991,0.31237309,2515.5,2515.4,2.613]
[1746958214179,0.7612,2515.8,2515.4,2.613]
[1746958214381,0.31237309,2515.5,2515.4,2.613]
[1746958214679,0.31299475,2515.5,2515.4,2.613]
[1746958214868,0.7612,2515.8,2515.4,2.613]
[1746958215069,0.31299475,2515.5,2515.4,2.613]
[1746958215269,0.83678612,2515.7,2515.4,2.613]
[1746958215473,0.31299475,2515.6,2515.4,2.613]
[1746958216094,1.40336764,2515.9,2515.4,2.613]
[1746958216395,0.31299475,2515.8,2515.4,2.613]
[1746958216580,1.88660336,2515.8,2515.4,2.613]
[1746958217595,0.22284733,2515.7,2515.4,2.613]
[1746958218093,0.31299475,2515.6,2515.4,2.613]
[1746958218763,3.97489465,2515.8,2515.4,2.613]
[1746958218963,0.31266949,2515.5,2515.4,2.613]
[1746958219186,3.97475779,2515.9,2515.4,2.613]
[1746958219386,0.31253999,2515.5,2515.4,2.613]
[1746958219557,3.97508439,2515.7,2515.4,2.613]
[1746958219859,0.22287574,2515.6,2515.4,2.613]
[1746958220055,0.53541573,2515.6,2515.4,2.613]
[1746958221005,0.22287574,2515.5,2515.4,2.613]
[1746958221472,0.53541573,2515.5,2515.4,2.613]
[1746958222263,1.06616552,2515.5,2515.4,2.613]
[1746958228219,5.04151833,2515.5,2515.4,2.613]
[1746958228586,1.06616552,2515.5,2515.4,2.613]
[1746958230435,0.53541573,2515.5,2515.4,2.613]
[1746958231420,0.73579256,2515.5,2515.4,2.613]
[1746958235441,4.71114537,2515.5,2514.0,0.20744052]
[1746958235745,3.9760429,2515.1,2514.9,2.61]
[1746958235944,3.97695735,2514.5,2514.3,0.3538]
[1746958236097,3.97702264,2514.5,2513.9,0.3538]
[1746958236287,3.9772973,2514.3,2513.8,2.61]
[1746958236797,0.22287574,2514.2,2513.8,2.61]
[1746958237019,0.73529304,2514.2,2513.8,2.61]
[1746958237221,0.69412088,2514.2,2513.8,2.61]
[1746958237405,1.2977173,2514.1,2513.8,2.61]
[1746958238021,0.5124173,2514.1,2513.8,2.61]
[1746958238594,9.28376765,2514.5,2513.8,2.61]
[1746958238794,0.51042154,2514.0,2513.8,2.61]
[1746958239035,0.51042154,2514.0,2513.9,0.3538]
[1746958239222,9.28376765,2514.5,2513.9,8.39357608]
[1746958239420,0.51008447,2514.0,2513.9,8.39357608]
[1746958239620,9.28376765,2514.5,2513.9,8.39357608]
[1746958239818,0.51008447,2514.0,2513.9,8.39357608]
[1746958240028,9.28376765,2514.5,2513.9,8.39357608]
[1746958240220,0.51008447,2514.0,2513.9,8.39357608]
[1746958240418,0.51008447,2514.0,2513.9,8.3538]
[1746958240600,9.28376765,2514.5,2513.9,8.3538]
[1746958240800,0.51044746,2514.0,2513.9,8.3538]
[1746958241028,9.28376765,2514.5,2513.9,8.3538]
[1746958241220,0.51044746,2514.0,2513.9,8.3538]
[1746958241420,9.28376765,2514.5,2513.9,8.39357285]
[1746958241931,0.51044746,2514.4,2513.9,8.39357285]
[1746958242537,0.51044746,2514.4,2513.9,8.3538]
[1746958242739,0.51044746,2514.4,2514.0,0.03977173]
[1746958243583,0.51044746,2514.4,2514.1,0.3538]
[1746958243702,0.51044746,2514.4,2514.2,0.03976904]
[1746958243899,0.51044746,2514.4,2514.3,0.3538]
[1746958244200,10.09676765,2515.2,2514.3,0.3538]
[1746958244432,0.49818813,2514.4,2514.3,0.3538]
[1746958244630,0.49818813,2514.4,2514.3,2.9648]
[1746958244837,8.0,2515.1,2514.3,2.9648]
[1746958245339,0.49818813,2515.0,2514.3,2.9648]
[1746958245839,0.49818813,2515.0,2514.4,0.3538]
[1746958245995,0.49818813,2515.0,2514.6,0.9038]
[1746958246198,8.0,2515.6,2514.7,14.308]
[1746958246400,0.45853162,2514.9,2514.8,0.3538]
[1746958246735,0.45853162,2514.9,2514.8,2.611]
[1746958246942,0.01072085,2515.4,2514.9,0.3538]
[1746958248338,0.01072085,2515.4,2514.9,0.39355752]
[1746958248698,0.01072085,2515.4,2514.9,0.3538]
[1746958249123,0.01072085,2515.4,2514.9,0.39355752]
[1746958251573,0.01072085,2515.4,2514.9,0.3538]
[1746958252243,0.8251,2515.3,2515.0,2.61]
[1746958252441,0.48113771,2515.2,2515.0,2.61]
[1746958252843,0.48113771,2515.2,2514.7,14.308]
[1746958253045,0.48113771,2515.2,2514.8,2.61]
[1746958253429,9.76490536,2515.2,2514.7,14.308]
[1746958253626,4.79639153,2515.1,2514.7,16.918]
[1746958253865,5.82986546,2515.0,2514.7,16.918]
[1746958254164,6.05220139,2515.0,2514.7,16.918]
[1746958254467,2.07605272,2515.0,2514.7,16.918]
[1746958255069,1.85371679,2515.0,2514.7,16.918]
[1746958256444,0.8203,2515.1,2514.7,16.918]
[1746958256756,0.22234511,2515.0,2514.7,16.918]
[1746958258077,0.45905398,2514.9,2514.7,16.918]
[1746958258250,0.8203,2515.1,2514.7,16.918]
[1746958258451,0.45905398,2515.0,2514.7,16.918]
[1746958259166,0.45905398,2515.0,2514.7,2.61]
[1746958260545,1.96107135,2515.0,2514.7,2.61]
[1746958264779,5.93725665,2515.0,2514.7,2.61]
[1746958264999,0.22251781,2514.9,2514.7,2.61]
[1746958265491,0.45934132,2514.8,2514.7,2.61]
[1746958265871,5.47817654,2515.0,2514.7,2.61]
[1746958266071,1.08918897,2514.9,2514.7,2.61]
[1746958266370,14.28301817,2514.8,2514.0,14.6608]
[1746958266575,3.97661748,2514.7,2514.3,2.607]
[1746958266785,0.8001,2514.5,2514.1,2.607]
[1746958267170,3.97717561,2514.4,2514.1,2.607]
[1746958267362,4.67759073,2514.3,2514.1,2.607]
[1746958267753,0.45813976,2514.2,2514.1,2.607]
[1746958267952,9.28376765,2514.2,2514.1,2.607]
[1746958268152,9.96445575,2514.2,2514.1,2.607]
[1746958268881,14.74836407,2514.2,2514.1,2.607]
[1746958269088,16.66869991,2514.2,2514.1,2.607]
[1746958270284,3.97763362,2514.1,2513.6,2.607]
[1746958270472,0.45537001,2514.0,2513.6,2.607]
[1746958271399,0.8065,2513.8,2513.5,2.607]
[1746958271554,14.06838543,2513.8,2513.5,2.607]
[1746958271875,1.86179033,2513.7,2513.5,2.607]
[1746958272078,3.97878196,2513.4,2512.9,2.607]
[1746958272255,0.45492565,2513.3,2512.9,2.607]
[1746958273276,0.7704,2512.9,2512.4,2.607]
[1746958273611,3.97986216,2512.7,2512.4,2.607]
[1746958273898,3.98051614,2512.3,2511.3,0.3538]
[1746958274082,13.26448379,2512.2,2511.4,2.608]
[1746958274402,3.9810502,2511.9,2511.5,2.608]
[1746958274550,0.7704,2512.0,2511.5,2.608]
[1746958274551,4.75135008,2512.0,2511.5,2.608]
[1746958274756,0.45076661,2511.8,2511.5,2.608]
[1746958275052,1.44881607,2511.9,2511.5,2.608]
[1746958275253,5.42991137,2511.9,2511.5,2.608]
[1746958275468,0.44888154,2511.8,2511.5,2.608]
[1746958276506,9.28376765,2511.7,2511.0,14.6658]
[1746958276668,15.0856068,2511.7,2511.1,2.608]
[1746958276981,9.72550725,2511.7,2511.2,0.039823]
[1746958277350,9.72550725,2511.7,2511.1,2.608]
[1746958277780,9.72550725,2511.7,2511.2,0.03981525]
[1746958278466,0.7704,2511.6,2511.1,2.608]
[1746958278666,0.43466234,2511.5,2511.1,2.608]
[1746958278868,9.28376765,2511.7,2511.1,2.608]
[1746958279085,0.43466234,2511.6,2511.1,2.608]
[1746958279897,0.43466234,2511.6,2511.2,0.3538]
[1746958280968,0.43466234,2511.6,2511.2,0.39361608]
[1746958281796,0.43466234,2511.6,2511.2,0.3538]
[1746958283897,1.40650534,2511.6,2511.2,0.3538]
[1746958284200,1.40650534,2511.6,2511.1,2.608]
[1746958285598,11.88976765,2511.5,2511.0,2.609]
[1746958285983,0.43466234,2511.4,2511.0,2.609]
[1746958286180,9.28376765,2511.3,2511.0,2.609]
[1746958286380,0.7695,2511.1,2511.0,2.609]
[1746958286999,1.20416234,2511.1,2511.0,2.609]
[1746958287303,5.18648084,2511.1,2511.0,2.609]
[1746958287595,10.48792999,2511.1,2510.5,2.606]
[1746958288183,2.606,2511.0,2510.5,2.606]
[1746958288379,1.4065773,2511.0,2510.5,2.606]
[1746958288700,0.43466234,2510.9,2510.5,2.606]
[1746958289691,0.43466234,2510.9,2510.6,0.3538]
[1746958290008,0.43466234,2510.9,2510.5,2.606]
[1746958290009,9.28376765,2511.1,2510.5,2.606]
[1746958290169,0.43219684,2510.8,2510.5,2.606]
[1746958290365,13.26612359,2511.1,2510.5,2.606]
[1746958290570,0.43219684,2510.7,2510.5,2.606]
[1746958290807,1.42379666,2511.0,2510.5,2.606]
[1746958291001,0.43219684,2510.6,2510.5,2.606]
[1746958291490,9.28376765,2511.1,2510.5,2.606]
[1746958291667,0.43219684,2511.0,2510.5,2.606]
[1746958292608,1.50097759,2511.0,2510.5,2.606]
[1746958293411,3.98296473,2510.7,2510.2,0.66666667]
[1746958293718,13.26673238,2510.7,2510.3,2.607]
[1746958293895,0.43219684,2510.6,2510.3,2.607]
[1746958294090,0.43219684,2510.6,2510.2,0.66666667]
[1746958294413,11.98358761,2510.3,2510.2,0.66666667]
[1746958294984,23.0266521,2510.3,2510.2,0.25]
[1746958295681,1.3271,2509.7,2507.8,0.3538]
[1746958295897,3.98623192,2508.7,2507.8,0.3538]
[1746958296118,3.85829684,2508.6,2507.8,0.3538]
[1746958296314,6.63547503,2508.5,2507.9,0.03986865]
[1746958296526,12.77115976,2508.4,2507.3,2.607]
[1746958296689,1.21667403,2508.4,2507.4,3.00067511]
[1746958296889,2.661,2508.3,2507.4,2.9608]
[1746958297117,9.28376765,2508.2,2507.4,2.9608]
[1746958297416,3.98724082,2508.0,2507.4,2.9608]
[1746958297590,3.98714639,2508.1,2507.4,2.9608]
[1746958297914,0.43219684,2508.0,2507.5,0.03987764]
[1746958298217,0.43219684,2508.0,2507.4,2.9608]
[1746958298218,9.28376765,2508.2,2507.6,2.608]
[1746958298385,0.43219684,2507.9,2507.6,2.608]
[1746958298596,2.686,2508.1,2507.6,2.558]
[1746958298809,0.43219684,2507.8,2506.8,0.3538]
[1746958299014,10.48364133,2508.0,2506.8,0.3538]
[1746958299246,0.41394423,2507.7,2506.8,0.3538]
[1746958299416,2.694,2507.7,2506.8,0.3538]
[1746958299617,0.41394423,2507.6,2506.8,0.3538]
[1746958300015,4.40196692,2507.6,2506.8,0.3538]
[1746958300215,4.40196692,2507.6,2506.0,1.0]
[1746958300216,0.7754,2507.4,2506.0,1.0]
[1746958300414,8.0,2507.2,2506.0,3.608]
[1746958300647,9.28376765,2507.2,2506.1,8.3538]
[1746958300820,9.28376765,2507.2,2506.2,0.3538]
[1746958301015,0.41323405,2507.1,2506.2,0.3538]
[1746958301227,0.41323405,2507.1,2506.4,0.3538]
[1746958302230,0.41323405,2507.1,2506.6,8.9038]
[1746958302481,0.41323405,2507.1,2506.9,0.3538]
[1746958302619,10.60073178,2507.9,2506.9,0.3936805]
[1746958302814,10.60073178,2507.9,2506.9,0.3538]
[1746958303148,0.41223429,2507.8,2506.9,0.3538]
[1746958303353,0.41223429,2507.8,2507.0,0.9038]
[1746958303554,0.41223429,2507.8,2507.1,0.3538]
[1746958303725,0.41223429,2507.8,2507.2,0.03987392]
[1746958304146,0.41223429,2507.8,2507.3,2.61]
[1746958304349,0.41223429,2507.8,2507.5,0.3538]
[1746958304649,9.28376765,2508.5,2507.6,0.03987174]
[1746958304856,0.41223429,2507.7,2507.5,0.3538]
[1746958305048,9.28376765,2508.5,2507.5,0.3538]
[1746958305247,10.48414442,2508.5,2507.5,0.3538]
[1746958305551,0.41223429,2508.4,2507.5,0.3538]
[1746958306543,0.41223429,2508.4,2507.6,0.9038]
[1746958306745,9.28376765,2508.8,2507.7,0.3538]
[1746958307047,0.41512751,2508.3,2507.7,0.3538]
[1746958307219,9.28376765,2508.8,2507.9,0.3538]
[1746958307543,9.28376765,2508.8,2508.1,8.0]
[1746958307715,0.41738169,2508.7,2508.2,0.3538]
[1746958308944,0.41738169,2508.7,2508.3,0.03985997]
[1746958309125,12.01476765,2509.3,2508.2,0.3538]
[1746958309326,0.41765829,2509.2,2508.2,0.3538]
[1746958309539,1.64177412,2509.1,2508.2,0.3538]
[1746958309716,2.05974781,2509.1,2508.2,0.3538]
[1746958310849,0.41797369,2509.1,2508.4,0.3538]
[1746958311154,9.28376765,2509.3,2508.5,0.0398527]
[1746958311321,9.28376765,2509.3,2508.6,2.724]
[1746958311521,0.38424717,2509.2,2508.6,2.724]
[1746958312129,0.38424717,2509.2,2508.7,0.03985964]
[1746958312332,1.35104865,2509.2,2508.7,0.03985964]
[1746958312657,0.38424717,2509.2,2508.8,0.3538]
[1746958313155,0.38424717,2509.1,2508.8,0.3538]
[1746958313348,9.28376765,2509.3,2508.8,0.3538]
[1746958313727,0.38424717,2509.2,2508.8,0.3538]
[1746958313943,9.28376765,2509.3,2508.8,0.3538]
[1746958314149,0.92837677,2509.2,2508.8,0.3538]
[1746958314344,0.38424717,2509.1,2508.8,0.3538]
[1746958315061,9.28376765,2509.3,2508.9,0.0398549]
[1746958315262,2.7010081,2510.2,2508.9,0.9436549]
[1746958315263,0.38424717,2509.0,2508.9,0.9436549]
[1746958315456,9.28376765,2510.2,2509.0,0.55]
[1746958315660,9.28376765,2510.2,2509.3,0.3538]
[1746958315857,0.38424717,2510.1,2509.5,8.3538]
[1746958316269,2.734,2510.4,2509.5,8.3538]
[1746958316465,0.38424717,2510.0,2509.6,0.03983681]
[1746958316766,3.40571262,2510.4,2509.6,0.03983681]
[1746958316767,0.38424717,2509.9,2509.6,0.03983681]
[1746958317263,2.734,2510.4,2509.6,0.03983671]
[1746958317664,0.38424717,2510.3,2509.6,0.03983671]
[1746958318266,0.38424717,2510.3,2509.5,8.3538]
[1746958318777,13.26672808,2510.7,2509.5,8.3538]
[1746958318961,0.38424717,2510.6,2509.5,8.3538]
[1746958319367,3.9838097,2510.2,2509.5,0.3538]
[1746958319540,9.28376765,2510.7,2509.5,0.3538]
[1746958319541,3.98374228,2510.3,2509.5,0.3538]
[1746958319872,0.38424717,2510.2,2509.5,0.3538]
[1746958320239,8.0,2510.6,2509.5,0.3538]
[1746958320436,3.98382876,2510.2,2509.5,0.3538]
[1746958320652,3.98366988,2510.3,2509.5,0.3538]
[1746958320852,0.38741585,2510.1,2509.5,0.3538]
[1746958321051,3.98375842,2510.2,2509.5,0.3538]
[1746958321253,0.38741585,2510.0,2509.5,0.3538]
[1746958321460,13.2674272,2510.3,2509.5,0.3538]
[1746958321771,13.2674272,2510.3,2509.5,8.3538]
[1746958321772,1.72509122,2510.2,2509.5,8.3538]
[1746958321970,0.38995103,2510.1,2509.6,0.03983983]
[1746958322272,9.28376765,2510.3,2509.6,0.03983618]
[1746958322475,0.38995103,2510.0,2509.5,8.3538]
[1746958322776,9.28376765,2510.3,2509.5,8.3538]
[1746958322934,1.3183278,2510.2,2509.6,2.723]
[1746958323336,3.98433084,2509.9,2509.6,2.723]
[1746958323564,3.98402996,2510.1,2509.6,2.723]
[1746958323957,0.38995103,2510.0,2509.6,2.723]
[1746958324349,11.01954442,2510.2,2509.6,2.723]
[1746958324552,0.38995103,2509.9,2509.6,2.723]
[1746958324751,1.77291325,2510.1,2509.6,2.723]
[1746958324938,0.38995103,2509.8,2509.6,2.723]
[1746958325141,1.77291325,2510.1,2509.6,2.723]
[1746958325772,0.38995103,2510.0,2509.6,2.723]
[1746958325973,2.10656717,2510.0,2509.6,2.723]
[1746958326977,0.38995103,2510.0,2509.6,2.723]
[1746958327165,9.28376765,2510.2,2509.7,0.3538]
[1746958327492,0.38995103,2510.1,2509.7,0.3538]
[1746958327971,0.38995103,2510.1,2509.6,2.723]
[1746958328878,4.37390216,2510.1,2509.6,2.723]
[1746958329079,5.74825309,2510.0,2509.6,2.723]
[1746958329276,5.74825739,2510.0,2509.4,0.3538]
[1746958329481,4.79966614,2509.9,2509.4,2.723]
[1746958329778,5.18961717,2509.9,2509.4,2.723]
[1746958329957,1.20525103,2509.9,2509.4,2.723]
[1746958330152,0.29694002,2509.8,2509.4,2.723]
[1746958330583,0.38995103,2509.7,2509.2,14.341]
[1746958330779,3.98481379,2509.6,2509.1,0.3538]
[1746958331080,9.28376765,2509.7,2509.0,2.723]
[1746958331287,3.98526306,2509.3,2509.0,2.723]
[1746958331467,4.80056306,2509.3,2509.0,2.723]
[1746958331672,0.38995103,2509.2,2509.0,2.723]
[1746958332062,3.98505121,2509.4,2508.8,0.3538]
[1746958332281,0.3884462,2509.1,2508.9,2.723]
[1746958332479,3.98505121,2509.4,2508.9,2.723]
[1746958332683,0.3884462,2509.0,2508.9,2.723]
[1746958332886,0.39850512,2509.3,2508.9,2.723]
[1746958333177,0.3884462,2509.0,2508.7,2.723]
[1746958333346,0.3884462,2508.9,2508.7,2.723]
[1746958333552,0.3884462,2508.9,2508.5,0.39366147]
[1746958333763,0.3884462,2508.8,2508.5,3.11666147]
[1746958334282,0.3884462,2508.7,2508.5,3.0768]
[1746958334662,9.28376765,2509.2,2508.5,3.0768]
[1746958334863,0.3884462,2508.6,2508.5,3.0768]
[1746958335070,1.63865272,2509.1,2508.5,3.0768]
[1746958335265,0.3884462,2508.6,2508.5,3.0768]
[1746958335503,1.63865272,2509.1,2508.5,3.0768]
[1746958335699,0.3884462,2508.6,2508.5,3.0768]
[1746958335890,1.63865272,2509.1,2508.5,3.0768]
[1746958336183,0.3884462,2508.6,2508.5,11.0768]
[1746958336357,9.28376765,2509.2,2508.5,3.0768]
[1746958336558,9.28376765,2509.2,2508.5,2.723]
[1746958336895,0.3884462,2509.1,2508.6,0.3538]
[1746958337198,0.3884462,2509.1,2508.5,2.723]
[1746958337199,0.8153,2509.9,2508.8,0.3538]
[1746958337367,1.00990677,2509.8,2508.8,0.3538]
[1746958337556,1.62101599,2509.8,2508.9,8.0]
[1746958337894,5.6054766,2509.8,2508.9,8.0]
[1746958338286,0.22266302,2509.7,2508.9,8.0]
[1746958338660,0.38636029,2509.6,2509.0,2.716]
[1746958338860,0.94671323,2509.6,2509.0,2.716]
[1746958339207,4.37107502,2509.6,2509.0,2.716]
[1746958339354,3.98490359,2509.5,2509.0,2.716]
[1746958339559,4.3711147,2509.6,2509.0,2.716]
[1746958339759,3.98475441,2509.6,2509.0,2.716]
[1746958339987,0.38636029,2509.5,2509.0,2.716]
[1746958340208,1.22193102,2509.5,2509.0,2.716]
[1746958340913,0.38636029,2509.5,2509.1,0.03985194]
[1746958341212,3.72590677,2509.8,2509.2,0.3538]
[1746958341576,0.38636029,2509.7,2509.2,0.3538]
[1746958342220,0.38636029,2509.7,2509.0,2.716]
[1746958342221,0.38636029,2509.7,2509.3,0.03984846]
[1746958342412,9.28376765,2510.0,2509.1,10.719]
[1746958342413,9.28376765,2510.0,2509.4,0.3538]
[1746958342709,1.283106,2509.9,2509.4,0.3538]
[1746958342911,0.35472923,2509.9,2509.5,0.03984189]
[1746958343081,0.35472923,2509.9,2509.6,2.716]
[1746958346997,13.26704101,2510.5,2509.7,0.03984178]
[1746958347194,13.26704101,2510.5,2509.6,2.716]
[1746958347401,1.95313333,2510.4,2509.6,2.716]
[1746958347901,3.98382977,2510.2,2509.6,2.716]
[1746958348102,0.22286542,2510.3,2509.6,2.716]
[1746958348303,0.8182,2510.2,2509.6,2.716]
[1746958348517,1.17292923,2510.2,2509.6,2.716]
[1746958348727,0.53794677,2510.1,2509.6,2.716]
[1746958349214,0.35472923,2510.0,2509.6,2.716]
[1746958350838,9.28376765,2509.9,2509.6,2.716]
[1746958350987,9.28376765,2509.9,2509.4,2.715]
[1746958351191,0.35629448,2509.8,2509.4,2.715]
[1746958351393,1.71871477,2509.8,2509.1,0.3538]
[1746958351743,1.71871477,2509.8,2509.2,2.715]
[1746958351885,0.35629448,2509.8,2509.3,0.03984772]
[1746958352090,0.35629448,2509.8,2509.2,2.715]
[1746958352714,0.35629448,2509.8,2509.3,2.715]
[1746958353027,0.35629448,2509.8,2509.4,2.715]
[1746958353028,8.35629448,2509.8,2509.4,2.715]
[1746958353334,8.35629448,2509.8,2509.1,0.3538]
[1746958353335,8.35629448,2509.8,2509.5,2.715]
[1746958353630,10.16243376,2509.7,2509.5,2.715]
[1746958353851,10.16243376,2509.7,2509.1,0.3936474]
[1746958354028,8.35626795,2509.6,2509.2,2.715]
[1746958354229,8.35626795,2509.6,2509.3,2.715]
[1746958358921,0.35626795,2509.6,2509.3,2.715]
[1746958359319,8.0,2509.8,2509.3,2.715]
[1746958359514,0.35714354,2509.5,2509.3,2.715]
[1746958359714,8.0,2509.8,2509.3,2.715]
[1746958360035,8.0,2509.8,2509.1,0.3538]
[1746958360226,0.35714354,2509.7,2509.4,2.715]
[1746958360406,8.0,2509.8,2509.4,2.715]
[1746958360604,0.35714354,2509.7,2509.4,2.715]
[1746958360804,8.0,2509.8,2509.4,2.715]
[1746958361005,0.35714354,2509.7,2509.4,2.715]
[1746958361206,8.0,2509.8,2509.4,2.715]
[1746958361416,0.35714354,2509.7,2509.4,2.715]
[1746958361617,8.0,2509.8,2509.4,2.715]
[1746958361831,0.35714354,2509.7,2509.4,2.715]
[1746958362109,8.0,2509.8,2509.4,2.715]
[1746958362326,0.35714354,2509.6,2509.4,2.715]
[1746958362509,9.72837677,2509.8,2509.4,2.715]
[1746958362713,0.35714354,2509.5,2509.4,2.715]
[1746958362911,9.72837677,2509.8,2509.4,2.715]
[1746958363124,0.35714354,2509.5,2509.4,2.715]
[1746958363632,9.72837677,2509.8,2509.4,2.715]
[1746958363839,0.35714354,2509.7,2509.4,2.715]
[1746958364105,8.0,2509.8,2509.4,2.715]
[1746958364636,0.35714354,2509.7,2509.1,0.3538]
[1746958364839,0.35714354,2509.7,2509.5,2.715]
[1746958365036,10.08292751,2509.8,2509.5,2.715]
[1746958365246,0.35714354,2509.7,2509.6,2.715]
[1746958365431,10.08292751,2509.8,2509.6,2.715]
[1746958365749,0.35714354,2509.7,2509.6,2.715]
[1746958366049,10.08292751,2509.8,2509.6,2.715]
[1746958366252,0.35714354,2509.7,2509.6,2.715]
[1746958366542,10.08292751,2509.8,2509.6,2.715]
[1746958366855,0.35714354,2509.7,2509.6,2.715]
[1746958367027,10.08292751,2509.8,2509.6,2.715]
[1746958367226,0.35714354,2509.7,2509.6,2.715]
[1746958367427,10.08292751,2509.8,2509.6,2.715]
[1746958367651,1.11887395,2509.7,2509.6,2.715]
[1746958368148,0.35714354,2509.7,2509.6,2.715]
[1746958368648,0.35714354,2509.7,2509.1,0.39364434]
[1746958368868,0.35714354,2509.7,2509.2,2.682]
[1746958370829,0.35714354,2509.7,2509.3,2.682]
[1746958371147,8.0,2509.8,2509.3,2.682]
[1746958371336,0.35714354,2509.6,2509.3,2.682]
[1746958371538,0.35748845,2509.7,2509.3,2.682]
[1746958371746,0.7693,2509.6,2509.4,2.682]
[1746958371918,1.12678845,2509.6,2509.4,2.682]
[1746958372120,0.22350511,2509.5,2509.4,2.682]
[1746958372519,0.58054263,2509.5,2509.4,2.682]
[1746958372945,0.58054263,2509.5,2508.9,0.3538]
[1746958373149,1.29040404,2509.5,2509.4,2.682]
[1746958373443,1.06689893,2509.5,2508.9,0.3538]
[1746958373653,0.35703752,2509.5,2509.4,2.682]
[1746958373831,1.76412561,2509.7,2509.4,2.682]
[1746958374034,0.58041872,2509.6,2509.4,2.682]
[1746958374752,0.35703752,2509.6,2509.4,2.682]
[1746958374951,3.98504674,2509.4,2508.9,0.03984706]
[1746958375155,3.98504674,2509.4,2508.6,2.682]
[1746958375156,8.0,2509.3,2508.6,2.682]
[1746958375351,8.35695794,2509.3,2508.6,2.682]
[1746958375543,0.22325933,2509.2,2508.7,0.39365597]
[1746958375746,0.22325933,2509.2,2508.7,0.3538]
[1746958375929,0.75401398,2509.2,2508.7,0.3538]
[1746958376127,0.58021727,2509.1,2508.7,0.3538]
[1746958377329,7.49007942,2509.0,2507.9,0.3538]
[1746958377558,7.49007942,2509.0,2508.0,2.682]
[1746958377828,0.35441749,2508.9,2508.0,2.682]
[1746958378050,1.93886718,2508.9,2508.0,2.682]
[1746958378457,3.98621034,2508.7,2508.0,2.682]
[1746958378664,0.8214,2508.6,2508.0,2.682]
[1746958378961,0.35441749,2508.5,2508.1,2.72186716]
[1746958379357,8.8214,2508.8,2508.1,2.682]
[1746958379565,0.35441749,2508.4,2508.2,2.682]
[1746958379860,1.17581749,2508.3,2508.2,2.682]
[1746958380057,1.17581749,2508.3,2507.6,2.682]
[1746958380435,1.17581749,2508.3,2507.7,0.3538]
[1746958380641,0.35441749,2508.3,2507.8,0.03986972]
[1746958381743,0.35441749,2508.3,2507.7,0.3538]
[1746958381943,0.35441749,2508.3,2507.8,0.03986416]
[1746958382135,9.28376765,2508.5,2507.9,0.3538]
[1746958382337,0.35441749,2508.2,2507.9,0.3538]
[1746958382555,9.28376765,2508.5,2508.0,0.03986439]
[1746958382768,0.35441749,2508.1,2508.0,0.03986439]
[1746958382969,9.28376765,2508.5,2507.9,0.3538]
[1746958383263,0.35441749,2508.4,2507.9,0.3538]
[1746958383936,1.318236,2508.4,2508.0,2.683]
[1746958384537,1.318236,2508.4,2508.0,2.633]
[1746958384764,0.8214,2508.3,2507.4,0.3538]
[1746958384970,4.80821343,2508.3,2507.5,2.683]
[1746958385262,4.34136134,2508.2,2507.5,2.683]
[1746958385465,0.51627613,2508.1,2507.5,2.683]
[1746958385653,0.8214,2508.3,2507.5,2.683]
[1746958385864,0.35441749,2508.2,2507.5,2.683]
[1746958387180,0.8214,2508.1,2507.5,2.683]
[1746958387350,4.80858351,2508.1,2507.5,2.683]
[1746958387675,0.35441749,2508.0,2507.5,2.683]
[1746958387839,1.14061759,2508.0,2507.5,2.683]
[1746958388269,5.12789973,2508.0,2507.5,2.683]
[1746958388457,5.12795469,2508.0,2507.5,2.683]
[1746958388769,1.14061759,2508.0,2507.5,2.683]
[1746958388978,3.98771669,2507.8,2506.9,0.3538]
[1746958389152,0.8807565,2507.7,2507.4,2.683]
[1746958389675,0.35441749,2507.6,2507.4,2.683]
[1746958390344,0.35441749,2507.6,2506.9,8.3538]
[1746958390656,0.35441749,2507.6,2507.0,2.683]
[1746958390843,0.35441749,2507.6,2507.1,0.03988201]
[1746958391044,1.80507533,2507.6,2507.1,0.03988201]
[1746958391245,0.35441749,2507.6,2507.1,8.03988201]
[1746958391466,9.28376765,2507.8,2507.1,8.03988201]